bitfinex/quotes_SOLUSD_20250722
["timestamp","ask_amount","ask_price","bid_price","bid_amount"]
[1753150432085,0.1,202.87,202.78,38.23]
[1753150432086,0.1,202.87,202.83,11.6772527]
[1753150432492,5.02928624,202.87,202.84,11.6772527]
[1753150432690,0.75,202.87,202.84,11.6772527]
[1753150433094,17.92929273,202.86,202.7,10.0]
[1753150433296,12.3272527,202.85,202.78,11.6772527]
[1753150433518,0.65,202.85,202.8,11.6772527]
[1753150433684,0.49460876,202.86,202.8,11.6772527]
[1753150433886,0.65,202.84,202.79,11.6772527]
[1753150434091,0.49460876,202.83,202.79,11.6772527]
[1753150434304,0.65,202.82,202.77,11.6772527]
[1753150434510,0.49460876,202.83,202.77,11.6772527]
[1753150434813,0.49460876,202.83,202.78,11.6772527]
[1753150435047,0.65,202.84,202.78,11.6772527]
[1753150435197,4.93023714,202.83,202.79,11.6772527]
[1753150435401,17.27929273,202.86,202.81,11.6772527]
[1753150435600,1.6003,202.87,202.83,11.6772527]
[1753150435601,7.02440268,202.87,202.83,11.6772527]
[1753150435802,7.67440268,202.87,202.83,11.6772527]
[1753150436005,0.75,202.87,202.84,11.6772527]
[1753150436416,0.75,202.87,202.75,17.26263871]
[1753150436417,0.1,202.87,202.86,11.6772527]
[1753150436918,0.1,202.87,202.86,12.3672527]
[1753150437422,0.06,202.97,202.89,26.0]
[1753150437621,0.06,202.97,202.94,11.6772527]
[1753150438194,4.98684523,202.97,202.94,11.6772527]
[1753150438395,4.98684523,202.97,202.89,26.0]
[1753150438595,12.82186146,202.96,202.88,11.6772527]
[1753150438898,26.65,202.95,202.91,11.6772527]
[1753150439204,0.65,202.95,202.92,11.6772527]
[1753150439398,0.06,202.97,202.94,11.6772527]
[1753150439601,0.06,202.97,202.96,11.6772527]
[1753150439812,0.06,202.97,202.91,11.6772527]
[1753150439813,0.65,202.96,202.91,11.6772527]
[1753150440033,0.65,202.95,202.89,26.0]
[1753150440218,54.79929273,202.94,202.8,0.68]
[1753150440526,11.6772527,202.89,202.74,6.3601]
[1753150440724,16.78468397,202.86,202.75,0.68]
[1753150440897,0.49460876,202.85,202.79,11.6772527]
[1753150441095,0.49460876,202.86,202.82,11.6772527]
[1753150441307,5.57950803,202.86,202.82,11.6772527]
[1753150441504,5.57950803,202.86,202.8,11.6772527]
[1753150441505,1.14460876,202.85,202.8,11.6772527]
[1753150441795,0.49460876,202.85,202.8,11.6772527]
[1753150442114,4.92903864,202.88,202.84,11.6772527]
[1753150442115,0.65,202.88,202.84,11.6772527]
[1753150442311,0.65,202.88,202.85,11.6772527]
[1753150442312,5.57913573,202.88,202.85,11.6772527]
[1753150442514,37.52,202.89,202.86,11.6772527]
[1753150443021,37.52,202.89,202.88,11.6772527]
[1753150443198,0.65,202.98,202.88,12.3572527]
[1753150443397,0.65,202.98,202.93,11.6772527]
[1753150443598,0.65,202.98,202.89,4.92877914]
[1753150443799,0.65,202.98,202.94,11.6772527]
[1753150444195,0.71,202.98,202.94,11.6772527]
[1753150444400,4.98663431,202.98,202.95,11.6772527]
[1753150444594,4.98663431,202.98,202.89,4.92877914]
[1753150444823,0.06,202.98,202.94,11.6772527]
[1753150445321,0.06,202.98,202.96,11.6772527]
[1753150445708,0.06,203.06,203.01,16.78468397]
[1753150445908,3.0075219,203.12,203.08,26.0]
[1753150445909,2.51291314,203.12,203.08,26.0]
[1753150446225,0.1,203.18,203.14,26.0]
[1753150446431,1e-08,203.18,203.17,11.6772527]
[1753150446610,1e-08,203.18,203.17,66.57413532]
[1753150446805,1e-08,203.18,203.1,10.0]
[1753150447029,1e-08,203.18,203.17,11.6772527]
[1753150447233,1e-08,203.18,203.17,28.46193667]
[1753150447529,1e-08,203.18,203.17,30.92198651]
[1753150447730,1e-08,203.18,203.17,42.59923921]
[1753150448130,1e-08,203.18,203.16,4.92208775]
[1753150448334,1e-08,203.18,203.17,11.6772527]
[1753150448709,1e-08,203.18,203.15,42.59965443]
[1753150448710,1e-08,203.18,203.15,26.0]
[1753150448909,1e-08,203.18,203.15,11.6772527]
[1753150449122,0.68,203.17,203.07,37.66]
[1753150449326,1e-08,203.18,203.16,11.6772527]
[1753150449625,1e-08,203.18,203.08,0.49241678]
[1753150449626,1e-08,203.18,203.17,11.6772527]
[1753150450633,1e-08,203.18,203.17,12.16945135]
[1753150451011,1e-08,203.18,203.17,28.46193667]
[1753150451430,1e-08,203.18,203.17,33.38392318]
[1753150451926,0.06,203.23,203.2,26.0]
[1753150452127,0.06,203.23,203.17,83.84108811]
[1753150452128,0.06,203.23,203.22,28.46193667]
[1753150452712,0.06,203.23,203.17,17.22695279]
[1753150452919,0.06,203.23,203.22,11.6772527]
[1753150453139,0.06,203.35,203.27,10.0]
[1753150453447,0.1,203.47,203.4,30.91642084]
[1753150453627,0.1,203.47,203.45,11.6772527]
[1753150453935,0.1,203.47,203.46,37.6772527]
[1753150455142,0.1,203.47,203.46,11.6772527]
[1753150455315,0.1,203.47,203.46,16.5922237]
[1753150455515,0.1,203.47,203.46,30.914971]
[1753150455715,0.1,203.47,203.46,42.5922237]
[1753150456444,0.49460876,203.61,203.5,26.0]
[1753150456735,0.68,203.61,203.59,11.6772527]
[1753150456911,21.69531056,203.64,203.58,11.6772527]
[1753150457109,1.17460876,203.63,203.54,26.0]
[1753150457332,4.9118326,203.59,203.54,11.6772527]
[1753150457562,4.9118326,203.59,203.5,5.97994865]
[1753150457563,0.68,203.58,203.51,26.0]
[1753150457724,0.49460876,203.57,203.52,11.6772527]
[1753150457932,0.68,203.56,203.52,11.6772527]
[1753150458128,0.68,203.56,203.5,1.06601295]
[1753150458129,0.68,203.55,203.54,11.6772527]
[1753150458440,0.68,203.58,203.54,11.6772527]
[1753150458745,0.68,203.61,203.57,11.6772527]
[1753150459050,0.68,203.73,203.67,26.0]
[1753150459337,237.5,203.94,203.58,38.21120738]
[1753150459338,0.68,203.89,203.76,4.90773458]
[1753150459519,12.85186146,203.89,203.81,11.6772527]
[1753150459710,11.6772527,203.86,203.79,11.6772527]
[1753150459910,1.17460876,203.85,203.79,11.6772527]
[1753150460132,11.6772527,203.83,203.71,27.06491403]
[1753150460330,1.17460876,203.82,203.79,11.6772527]
[1753150460638,0.68,203.85,203.74,26.0]
[1753150460839,0.68,203.85,203.8,11.6772527]
[1753150461328,0.68,203.85,203.72,1.06486175]
[1753150461329,0.68,203.84,203.72,5.97332404]
[1753150461532,11.6772527,203.79,203.72,1.06486175]
[1753150461735,28.46193667,203.73,203.58,15.390675]
[1753150462039,16.78468397,203.71,203.65,11.6772527]
[1753150462239,11.6772527,203.68,203.61,11.6772527]
[1753150462418,16.78468397,203.66,203.57,4.91231193]
[1753150462619,0.49460876,203.65,203.6,11.6772527]
[1753150462915,11.6772527,203.61,203.52,4.91340573]
[1753150463129,16.78468397,203.63,203.52,4.91340573]
[1753150463130,12.85186146,203.6,203.52,16.59065843]
[1753150463436,12.3572527,203.6,203.53,11.6772527]
[1753150463739,0.49460876,203.62,203.56,11.6772527]
[1753150463938,0.49460876,203.62,203.57,11.6772527]
[1753150464137,0.68,203.64,203.52,0.67]
[1753150464138,0.49460876,203.63,203.58,11.6772527]
[1753150464443,0.68,203.62,203.56,11.6772527]
[1753150464614,0.49460876,203.61,203.55,11.6772527]
[1753150464815,0.49460876,203.61,203.56,11.6772527]
[1753150465034,0.68,203.62,203.57,11.6772527]
[1753150465241,0.49460876,203.64,203.59,11.6772527]
[1753150465519,16.78468397,203.62,203.51,1.07421163]
[1753150465748,1.17460876,203.61,203.51,17.66517094]
[1753150466041,1.17460876,203.61,203.52,11.6772527]
[1753150466245,11.5394,203.68,203.6,11.6772527]
[1753150466246,0.68,203.66,203.6,11.6772527]
[1753150466542,0.68,203.66,203.52,1.74415885]
[1753150466543,12.85186146,203.65,203.57,11.6772527]
[1753150466716,11.6772527,203.64,203.57,11.6772527]
[1753150466914,0.49460876,203.63,203.58,11.6772527]
[1753150467160,0.68,203.71,203.62,11.6772527]
[1753150467440,0.68,203.76,203.71,4.90893917]
[1753150467652,1.17460876,203.75,203.7,11.6772527]
[1753150467819,0.68,203.74,203.58,0.67]
[1753150468023,0.68,203.78,203.67,26.0]
[1753150468216,1.17460876,203.78,203.72,11.6772527]
[1753150468420,1.17460876,203.78,203.67,26.0]
[1753150468421,12.85186146,203.78,203.71,11.6772527]
[1753150468631,11.6772527,203.77,203.7,11.6772527]
[1753150468925,12.85186146,203.78,203.71,11.6772527]
[1753150469131,0.49460876,203.78,203.75,11.6772527]
[1753150469338,12.17186146,203.81,203.74,11.6772527]
[1753150469632,12.17186146,203.81,203.7,0.67]
[1753150469633,11.6772527,203.8,203.73,16.58562284]
[1753150469946,0.49460876,203.79,203.73,16.58562284]
[1753150470231,0.49460876,203.79,203.74,11.6772527]
[1753150470837,50.3972527,203.81,203.74,11.6772527]
[1753150470838,0.68,203.78,203.74,11.6772527]
[1753150471042,0.68,203.78,203.73,11.6772527]
[1753150471335,1.17460876,203.77,203.71,11.6772527]
[1753150471722,28.46193667,203.76,203.66,4.90998565]
[1753150471922,12.85186146,203.75,203.68,11.6772527]
[1753150472723,11.6772527,203.73,203.66,11.6772527]
[1753150472930,0.49460876,203.72,203.66,11.6772527]
[1753150473222,11.6772527,203.7,203.6,4.91159135]
[1753150473437,4.91038546,203.65,203.53,4.91328059]
[1753150473635,11.6772527,203.62,203.55,11.6772527]
[1753150473940,11.6772527,203.6,203.52,5.9875915]
[1753150474242,0.49460876,203.59,203.53,11.6772527]
[1753150474539,12.85186146,203.61,203.54,11.6772527]
[1753150474734,1.17460876,203.65,203.56,11.6772527]
[1753150474938,1.17460876,203.65,203.61,11.6772527]
[1753150475123,11.6772527,203.62,203.52,5.98749042]
[1753150475324,11.6772527,203.6,203.53,11.6772527]
[1753150475530,0.49460876,203.59,203.54,11.6772527]
[1753150475733,37.96,203.62,203.57,11.6772527]
[1753150476051,1.17460876,203.61,203.52,5.98754753]
[1753150476346,37.98,203.62,203.59,11.6772527]
[1753150476544,12.85186146,203.61,203.54,11.6772527]
[1753150476922,37.98,203.62,203.57,11.6772527]
[1753150477222,37.98,203.62,203.52,6.65754753]
[1753150477416,0.49460876,203.63,203.57,4.91231517]
[1753150477620,11.6772527,203.59,203.52,12.75141155]
[1753150477849,0.49460876,203.58,203.52,12.75141155]
[1753150478053,11.6772527,203.57,203.52,1.07415885]
[1753150478236,1.17460876,203.6,203.52,1.07415885]
[1753150478420,11.6772527,203.58,203.52,5.98763357]
[1753150478621,12.85186146,203.6,203.54,11.6772527]
[1753150478821,12.85186146,203.6,203.53,11.6772527]
[1753150479042,17.95929273,203.59,203.52,1.07415885]
[1753150479246,11.6772527,203.55,203.52,1.07415885]
[1753150479423,11.6772527,203.53,203.52,1.07415885]
[1753150479624,33.37521726,203.53,203.52,1.07415885]
[1753150479829,34.05521726,203.53,203.52,1.07415885]
[1753150480545,34.05521726,203.53,203.47,0.03]
[1753150480546,16.78468397,203.52,203.47,0.03]
[1753150480746,28.46193667,203.48,203.47,0.03]
[1753150481046,11.6772527,203.49,203.47,0.03]
[1753150481241,38.14,203.49,203.47,0.03]
[1753150481423,12.85186146,203.48,203.47,0.03]
[1753150481624,38.16,203.48,203.47,0.03]
[1753150482734,38.14,203.5,203.47,0.03]
[1753150483438,50.99186146,203.5,203.47,0.03]
[1753150483754,38.82,203.5,203.47,0.03]
[1753150484170,0.68,203.49,203.47,0.03]
[1753150484543,38.14,203.5,203.47,0.03]
[1753150484749,38.14,203.5,203.47,11.7072527]
[1753150485355,38.14,203.5,203.47,0.03]
[1753150485543,0.49460876,203.53,203.47,11.7072527]
[1753150485760,0.68,203.61,203.52,11.6772527]
[1753150485969,12.17186146,203.6,203.5,26.67]
[1753150486147,11.6772527,203.59,203.52,11.6772527]
[1753150486344,0.49460876,203.58,203.52,11.6772527]
[1753150486545,0.68,203.61,203.54,11.6772527]
[1753150486754,0.68,203.65,203.59,11.6772527]
[1753150486954,4.9094248,203.69,203.62,11.6772527]
[1753150487245,38.8,203.7,203.66,11.6772527]
[1753150487746,35.34,203.73,203.62,0.67]
[1753150488050,35.34,203.73,203.66,11.6772527]
[1753150488051,38.63460876,203.72,203.66,11.6772527]
[1753150488259,50.31186146,203.72,203.65,11.6772527]
[1753150488566,50.31186146,203.72,203.62,5.58110892]
[1753150488567,11.6772527,203.71,203.62,4.91110892]
[1753150488746,11.6772527,203.71,203.64,11.6772527]
[1753150488747,0.49460876,203.7,203.64,11.6772527]
[1753150489259,0.49460876,203.71,203.62,4.91110892]
[1753150489448,12.17186146,203.71,203.64,11.6772527]
[1753150489649,4.90918016,203.7,203.64,11.6772527]
[1753150489856,4.90918016,203.7,203.61,26.67]
[1753150489857,38.82,203.72,203.66,11.6772527]
[1753150490075,43.7287393,203.72,203.66,11.6772527]
[1753150490258,12.17186146,203.71,203.64,11.6772527]
[1753150490450,38.63460876,203.72,203.67,11.6772527]
[1753150490656,38.14,203.72,203.67,11.6772527]
[1753150490958,38.14,203.72,203.71,11.6772527]
[1753150491157,38.14,203.72,203.64,0.67]
[1753150491370,38.14,203.72,203.7,11.6772527]
[1753150491743,38.14,203.72,203.71,11.6772527]
[1753150491946,38.14,203.72,203.7,11.6772527]
[1753150492168,38.14,203.72,203.71,11.6772527]
[1753150492356,38.14,203.72,203.7,11.6772527]
[1753150493368,11.6772527,203.71,203.66,0.67]
[1753150493558,11.6772527,203.71,203.64,11.6772527]
[1753150493559,12.17186146,203.71,203.64,11.6772527]
[1753150493864,11.6772527,203.7,203.61,0.67]
[1753150494067,11.6772527,203.7,203.55,24.56388795]
[1753150494068,11.6772527,203.66,203.59,11.6772527]
[1753150494272,38.02,203.65,203.63,0.03]
[1753150494455,38.7,203.65,203.63,0.03]
[1753150495371,38.02,203.65,203.63,0.03]
[1753150495758,38.02,203.65,203.63,11.7072527]
[1753150495954,0.49460876,203.72,203.64,11.6772527]
[1753150496156,11.6772527,203.67,203.63,0.03]
[1753150496351,0.68,203.69,203.63,0.03]
[1753150496352,50.15186146,203.66,203.63,0.03]
[1753150496556,50.83186146,203.66,203.63,0.03]
[1753150496860,0.68,203.65,203.63,0.03]
[1753150497062,0.49460876,203.64,203.63,0.03]
[1753150497375,12.85186146,203.64,203.63,0.03]
[1753150497581,34.54717202,203.64,203.63,0.03]
[1753150498167,11.6772527,203.57,203.5,11.6772527]
[1753150498473,50.23186146,203.56,203.49,11.6772527]
[1753150498895,12.3572527,203.55,203.47,0.03]
[1753150499061,12.3572527,203.55,203.47,11.7072527]
[1753150499062,12.17186146,203.54,203.47,11.7072527]
[1753150499387,0.49460876,203.59,203.5,11.6772527]
[1753150499559,1.17460876,203.63,203.58,11.6772527]
[1753150499880,0.49460876,203.66,203.61,11.6772527]
[1753150500085,38.1,203.62,203.61,11.6772527]
[1753150500381,38.1,203.66,203.61,11.6772527]
[1753150500572,39.27460876,203.66,203.56,26.67]
[1753150500777,11.6772527,203.62,203.52,0.67]
[1753150500978,11.6772527,203.6,203.53,11.6772527]
[1753150501287,11.6772527,203.55,203.48,11.6772527]
[1753150501467,4.91328059,203.53,203.47,0.03]
[1753150501671,12.17186146,203.52,203.47,0.03]
[1753150501886,1.17460876,203.52,203.47,0.03]
[1753150502088,16.78468397,203.48,203.47,0.03]
[1753150502628,0.49460876,203.53,203.47,0.03]
[1753150502783,38.79460876,203.52,203.47,0.03]
[1753150502967,0.49460876,203.51,203.47,11.7072527]
[1753150503167,38.3,203.52,203.5,11.6772527]
[1753150503364,38.3,203.52,203.47,0.03]
[1753150503365,38.98,203.52,203.47,0.03]
[1753150503784,38.98,203.52,203.48,11.6772527]
[1753150503982,38.3,203.52,203.49,11.6772527]
[1753150504191,38.3,203.52,203.48,11.6772527]
[1753150504482,38.98,203.52,203.47,0.03]
[1753150505062,43.21356475,203.52,203.47,11.7072527]
[1753150505257,0.49460876,203.51,203.47,0.03]
[1753150505888,0.68,203.51,203.47,0.03]
[1753150506084,0.49460876,203.5,203.47,0.03]
[1753150506280,1.17460876,203.5,203.47,0.03]
[1753150506491,0.68,203.49,203.47,0.03]
[1753150506667,38.3,203.5,203.48,11.6772527]
[1753150506981,38.3,203.5,203.49,11.6772527]
[1753150507488,38.3,203.51,203.49,11.6772527]
[1753150507680,0.49460876,203.56,203.5,11.6772527]
[1753150507862,38.28,203.58,203.55,11.6772527]
[1753150508264,38.28,203.58,203.53,11.6772527]
[1753150508495,5.40554149,203.63,203.57,11.6772527]
[1753150508663,38.3,203.63,203.6,11.6772527]
[1753150508980,38.3,203.63,203.62,11.6772527]
[1753150509292,0.49460876,203.68,203.62,11.6772527]
[1753150509587,6.0738078,203.7,203.64,11.6772527]
[1753150509783,17.7510605,203.7,203.63,11.6772527]
[1753150510113,6.0738078,203.7,203.64,11.6772527]
[1753150510286,11.6772527,203.69,203.62,11.6772527]
[1753150510487,0.49460876,203.68,203.62,11.6772527]
[1753150510803,12.3472527,203.67,203.6,11.6772527]
[1753150510973,38.75460876,203.66,203.61,11.6772527]
[1753150511164,0.67,203.65,203.59,11.6772527]
[1753150511365,0.49460876,203.64,203.6,11.6772527]
[1753150511774,38.75460876,203.66,203.62,11.6772527]
[1753150511978,43.84019969,203.66,203.61,11.6772527]
[1753150512191,1.16460876,203.65,203.6,11.6772527]
[1753150512385,0.67,203.64,203.59,11.6772527]
[1753150512577,0.67,203.64,203.6,11.6772527]
[1753150512783,38.26,203.66,203.62,11.6772527]
[1753150513472,38.26,203.66,203.56,17.19388746]
[1753150513473,38.26,203.66,203.64,11.6772527]
[1753150513989,12.17186146,203.7,203.64,11.6772527]
[1753150514189,0.06,203.72,203.69,11.6772527]
[1753150514579,0.06,203.72,203.71,11.6772527]
[1753150515396,0.06,203.72,203.71,12.3772527]
[1753150515689,0.06,203.72,203.71,17.28619187]
[1753150516195,0.06,203.75,203.71,29.55853981]
[1753150516491,0.06,203.75,203.74,11.6772527]
[1753150516988,0.06,203.75,203.74,12.3772527]
[1753150517695,0.06,203.75,203.74,16.58546905]
[1753150517905,0.06,203.75,203.74,17.28546905]
[1753150518973,1e-08,203.75,203.74,17.28546905]
[1753150519178,0.06,203.8,203.77,26.0]
[1753150519385,0.06,203.8,203.79,11.6772527]
[1753150519588,0.06,203.82,203.81,26.0]
[1753150519793,0.06,203.82,203.81,42.58378329]
[1753150519972,0.06,203.82,203.81,43.28378329]
[1753150520174,0.73,203.82,203.73,0.7]
[1753150520387,0.73,203.82,203.76,11.6772527]
[1753150520581,1.22460876,203.82,203.73,0.7]
[1753150520770,1.22460876,203.82,203.78,11.6772527]
[1753150520982,0.06,203.82,203.79,11.6772527]
[1753150521202,12.4072527,203.82,203.72,0.7]
[1753150521407,1.16460876,203.81,203.72,0.7]
[1753150521714,6.07133828,203.81,203.74,11.6772527]
[1753150521903,17.74859098,203.81,203.74,11.6772527]
[1753150522089,6.07133828,203.81,203.74,11.6772527]
[1753150522292,17.74859098,203.81,203.74,11.6772527]
[1753150522493,6.07133828,203.81,203.74,11.6772527]
[1753150522689,0.67,203.8,203.72,11.6772527]
[1753150523002,16.78468397,203.78,203.65,4.91038546]
[1753150523206,11.6772527,203.76,203.69,11.6772527]
[1753150523410,0.49460876,203.75,203.69,11.6772527]
[1753150523585,0.49460876,203.75,203.7,11.6772527]
[1753150523780,0.49460876,203.76,203.7,11.6772527]
[1753150524099,39.36460876,203.78,203.72,11.6772527]
[1753150524297,55.94933878,203.78,203.71,11.6772527]
[1753150524492,55.94933878,203.78,203.67,26.0]
[1753150524493,11.6772527,203.75,203.64,4.91062659]
[1753150524686,12.84186146,203.74,203.67,11.6772527]
[1753150524886,11.6772527,203.71,203.64,11.6772527]
[1753150525192,12.84186146,203.7,203.63,11.6772527]
[1753150525400,11.6772527,203.68,203.62,11.6772527]
[1753150525709,0.49460876,203.67,203.62,11.1772527]
[1753150525899,11.6772527,203.65,203.56,0.7]
[1753150526079,39.32460876,203.64,203.57,11.6772527]
[1753150526404,39.32460876,203.64,203.53,11.6772527]
[1753150526405,0.67,203.63,203.53,11.6772527]
[1753150526604,11.6772527,203.61,203.53,11.6772527]
[1753150526791,38.69460876,203.6,203.55,11.6772527]
[1753150526992,38.2,203.6,203.56,11.6772527]
[1753150527199,38.2,203.6,203.57,11.6772527]
[1753150527403,28.00202899,203.67,203.52,5.61352201]
[1753150527404,0.67,203.68,203.59,11.6772527]
[1753150527697,17.25701916,203.68,203.58,0.7]
[1753150527897,11.6772527,203.67,203.6,11.6772527]
[1753150528104,0.49460876,203.66,203.58,5.61193197]
[1753150528294,0.49460876,203.66,203.6,11.6772527]
[1753150528610,0.49460876,203.66,203.59,11.6772527]
[1753150528611,11.6772527,203.66,203.59,11.6772527]
[1753150528902,11.6772527,203.64,203.53,0.7]
[1753150529104,12.84186146,203.63,203.56,11.6772527]
[1753150529283,49.8772527,203.62,203.55,11.6772527]
[1753150529488,0.49460876,203.61,203.55,11.6772527]
[1753150529801,38.2,203.62,203.58,11.6772527]
[1753150529995,0.67,203.67,203.61,11.6772527]
[1753150530199,0.67,203.67,203.63,11.6772527]
[1753150530597,38.18,203.68,203.64,11.6772527]
[1753150530905,38.18,203.68,203.56,43.19394772]
[1753150530906,38.18,203.68,203.65,11.6772527]
[1753150531104,38.18,203.68,203.67,11.6772527]
[1753150531293,38.65460876,203.73,203.67,11.6772527]
[1753150531493,4.90769412,203.77,203.69,11.6772527]
[1753150531690,4.90769412,203.77,203.59,26.49118326]
[1753150531691,38.65460876,203.76,203.7,11.6772527]
[1753150531885,38.65460876,203.76,203.7,16.58636821]
[1753150532088,38.16,203.76,203.72,11.6772527]
[1753150532394,38.83,203.76,203.72,11.6772527]
[1753150532619,38.83,203.76,203.7,4.90911551]
[1753150532900,38.83,203.76,203.71,11.6772527]
[1753150533102,1.16460876,203.75,203.7,11.6772527]
[1753150533410,11.6772527,203.73,203.66,11.6772527]
[1753150533594,11.6772527,203.7,203.63,11.6772527]
[1753150533794,11.6772527,203.67,203.59,11.6772527]
[1753150534005,11.6772527,203.68,203.61,11.6772527]
[1753150534209,16.58614644,203.72,203.65,11.6772527]
[1753150534394,38.59460876,203.71,203.65,11.6772527]
[1753150534715,50.27186146,203.71,203.64,11.6772527]
[1753150535512,38.1,203.71,203.68,11.6772527]
[1753150535704,0.67,203.76,203.7,11.6772527]
[1753150536017,38.06,203.76,203.72,11.6772527]
[1753150536310,38.06,203.76,203.73,11.6772527]
[1753150536707,38.06,203.76,203.74,11.6772527]
[1753150537209,1.16460876,203.79,203.67,26.7]
[1753150537210,38.71,203.79,203.67,26.0]
[1753150537409,4.90773458,203.76,203.7,11.6772527]
[1753150537612,16.58488665,203.77,203.7,11.6772527]
[1753150537916,0.49460876,203.76,203.7,11.6772527]
[1753150538414,1.17460876,203.76,203.67,4.93969549]
[1753150538596,12.85186146,203.76,203.67,4.93969549]
[1753150538797,12.85186146,203.76,203.69,11.6772527]
[1753150538999,1.17460876,203.76,203.69,11.6772527]
[1753150539322,4.90797546,203.75,203.69,11.6772527]
[1753150539891,1.17460876,203.76,203.7,11.6772527]
[1753150540104,6.08238404,203.76,203.7,11.6772527]
[1753150540304,17.75963674,203.76,203.69,11.6772527]
[1753150541006,11.6772527,203.75,203.68,11.6772527]
[1753150541309,4.90893917,203.71,203.67,0.03]
[1753150541618,37.92,203.72,203.67,0.03]
[1753150541804,38.41460876,203.72,203.67,0.03]
[1753150542113,37.92,203.72,203.67,11.7072527]
[1753150542314,38.6,203.72,203.67,11.7072527]
[1753150542510,43.50892804,203.72,203.67,0.03]
[1753150542714,0.68,203.71,203.67,0.03]
[1753150542907,37.92,203.72,203.68,11.6772527]
[1753150543112,37.92,203.72,203.7,11.6772527]
[1753150543410,1.17460876,203.71,203.67,0.03]
[1753150543614,11.6772527,203.7,203.67,0.03]
[1753150543798,12.3572527,203.7,203.67,0.03]
[1753150543991,0.68,203.69,203.67,0.03]
[1753150545223,0.68,203.68,203.67,0.03]
[1753150545405,12.3572527,203.68,203.67,0.03]
[1753150546315,12.3572527,203.68,203.52,4.91352201]
[1753150546519,4.91014435,203.66,203.55,11.6772527]
[1753150546708,11.6772527,203.63,203.56,11.6772527]
[1753150546906,37.8,203.62,203.56,11.6772527]
[1753150547209,37.8,203.62,203.59,11.6772527]
[1753150547398,37.8,203.65,203.59,0.69]
[1753150547727,11.6772527,203.62,203.55,11.6772527]
[1753150548228,50.1372527,203.64,203.57,11.6772527]
[1753150548424,16.58836162,203.62,203.52,30.91352201]
[1753150548609,12.17186146,203.61,203.54,11.6772527]
[1753150548810,0.49460876,203.61,203.55,11.6772527]
[1753150549018,0.49460876,203.61,203.56,11.6772527]
[1753150549333,5.40571768,203.62,203.57,11.6772527]
[1753150549532,5.40571768,203.62,203.53,26.69]
[1753150549533,5.40571768,203.62,203.56,11.6772527]
[1753150549700,5.40571768,203.62,203.53,0.69]
[1753150549905,5.40571768,203.62,203.57,11.6772527]
[1753150550209,6.08571768,203.62,203.57,11.6772527]
[1753150550608,37.78,203.64,203.59,11.6772527]
[1753150550910,0.68,203.63,203.58,11.6772527]
[1753150551230,38.27460876,203.64,203.59,11.6772527]
[1753150551403,11.6772527,203.62,203.55,11.6772527]
[1753150551605,11.6772527,203.58,203.51,11.6772527]
[1753150551825,49.3972527,203.59,203.52,11.6772527]
[1753150552001,0.49460876,203.58,203.52,11.6772527]
[1753150552204,16.58956787,203.57,203.5,11.6772527]
[1753150552510,1.17460876,203.56,203.47,0.03]
[1753150552713,11.6772527,203.55,203.48,11.6772527]
[1753150552917,38.19460876,203.54,203.47,4.94465232]
[1753150553133,38.19460876,203.54,203.47,0.03]
[1753150553321,11.6772527,203.52,203.47,0.03]
[1753150553521,11.6772527,203.5,203.47,0.03]
[1753150553734,38.21460876,203.49,203.47,0.03]
[1753150553913,0.68,203.48,203.47,0.03]
[1753150554107,5.59448791,203.48,203.47,0.03]
[1753150554307,16.78468397,203.47,203.44,0.03]
[1753150554628,28.46193667,203.45,203.44,0.03]
[1753150555012,29.14193667,203.45,203.44,0.03]
[1753150556106,17.27246528,203.45,203.44,0.03]
[1753150556511,0.49460876,203.47,203.44,11.7072527]
[1753150556727,37.7,203.47,203.46,11.6772527]
[1753150557219,38.38,203.47,203.44,0.03]
[1753150557420,34.82713667,203.45,203.42,0.03]
[1753150557610,11.6772527,203.43,203.42,0.03]
[1753150557811,0.49460876,203.44,203.42,0.03]
[1753150557812,12.85186146,203.44,203.42,0.03]
[1753150558112,34.05763248,203.43,203.42,0.03]
[1753150558414,16.78468397,203.39,203.38,1e-08]
[1753150558609,66.67654543,203.39,203.38,1e-08]
[1753150558810,67.35654543,203.39,203.38,1e-08]